bitfinex/quotes_ETHUSD_20220118
["timestamp","ask_amount","ask_price","bid_price","bid_amount"]
[1642490879887,0.00341054,3187.3,3186.6,0.447]
[1642490880088,0.00625265,3187.8,3186.7,1.2830446]
[1642490880442,0.00568423,3187.7,3186.7,1.8830446]
[1642490880634,0.00568423,3187.7,3187.2,1.39074586]
[1642490880831,0.00511581,3187.6,3187.3,0.447]
[1642490881229,0.00454738,3187.5,3187.3,0.447]
[1642490881430,0.00454738,3187.5,3187.3,0.747]
[1642490881635,0.00397896,3187.4,3187.3,0.747]
[1642490881833,0.00397896,3187.4,3187.3,1.1724]
[1642490882033,1.60109246,3188.6,3187.4,5.55]
[1642490882231,1.60109246,3188.6,3187.5,0.5724]
[1642490882433,0.00625266,3188.5,3187.5,0.5724]
[1642490882833,0.00568424,3188.4,3187.5,0.5724]
[1642490883237,0.00511581,3188.3,3187.5,0.5724]
[1642490883637,0.00454739,3188.2,3187.5,0.5724]
[1642490884037,8.64279246,3188.8,3187.5,0.5724]
[1642490884038,0.00397897,3188.1,3187.5,0.5724]
[1642490884280,0.00397897,3188.1,3187.5,2.95280924]
[1642490884480,0.00341054,3188.0,3187.5,2.95280924]
[1642490884880,0.00284212,3187.9,3187.5,2.95280924]
[1642490885281,0.00227369,3187.8,3187.5,2.95280924]
[1642490885685,0.00170527,3187.7,3187.5,2.95280924]
[1642490885881,0.00170527,3187.7,3187.6,2.3581284]
[1642490886080,2.68033038,3188.7,3187.6,3.2305284]
[1642490886281,2.68033038,3188.7,3187.7,2.34379015]
[1642490886482,0.00682108,3188.6,3187.8,0.447]
[1642490886683,0.00682108,3188.6,3187.9,2.76899688]
[1642490886882,0.00625266,3188.5,3188.2,1.26116294]
[1642490887280,0.00568424,3188.4,3188.2,1.26116294]
[1642490887683,0.00511581,3188.3,3187.9,0.1254]
[1642490887935,0.00511581,3188.3,3187.9,0.3]
[1642490888132,0.00454739,3188.2,3187.9,0.3]
[1642490888533,0.00397897,3188.1,3187.8,0.447]
[1642490888933,0.00341054,3188.0,3187.8,1.92045475]
[1642490889333,0.00284212,3187.9,3187.8,1.92045475]
[1642490889733,0.00284212,3187.9,3187.8,2.22045475]
[1642490889734,0.00738951,3187.9,3187.8,2.22045475]
[1642490891883,1.60109246,3189.0,3188.0,0.0503208]
[1642490892184,0.00113684,3188.9,3188.2,0.06489314]
[1642490892382,1.60109246,3188.8,3188.3,0.5724]
[1642490892583,1.60109246,3188.8,3188.4,0.447]
[1642490892782,1.60109246,3188.8,3188.4,1.93169698]
[1642490892985,1.60109246,3188.8,3188.5,0.00113685]
[1642490893185,1.60109246,3188.8,3188.6,0.447]
[1642490893386,0.00113684,3188.9,3188.6,0.747]
[1642490895625,0.00113684,3188.9,3188.7,2.38005594]
[1642490895824,0.00113684,3188.9,3188.8,5.447]
[1642490896229,0.00113684,3188.9,3188.8,6.89843547]
[1642490896426,0.00113684,3188.9,3188.8,1.89843547]
[1642490901185,0.00113684,3188.9,3188.8,0.447]
[1642490901387,0.00113684,3188.9,3188.5,0.00113685]
[1642490901782,0.00113684,3188.9,3188.3,0.0022737]
[1642490906133,0.00113684,3188.9,3187.9,0.00454739]
[1642490906335,0.00113684,3188.9,3188.1,0.00341054]
[1642490906537,0.00113684,3188.9,3187.9,0.00454739]
[1642490907781,0.1254,3188.8,3187.9,0.00454739]
[1642490907983,0.12653684,3188.9,3187.9,0.00454739]
[1642490908185,2.80650913,3188.9,3187.9,0.00454739]
[1642490908384,2.60905099,3188.8,3187.9,0.00454739]
[1642490908586,3.66465099,3188.8,3187.6,0.00625266]
[1642490908785,0.1254,3188.7,3187.6,0.00625266]
[1642490908984,0.1254,3188.7,3187.5,0.00682109]
[1642490909187,0.1254,3188.7,3187.2,0.00852636]
[1642490909384,0.1254,3188.7,3187.1,0.00909478]
[1642490909385,18.27,3188.6,3187.1,0.00909478]
[1642490909584,18.27,3188.6,3186.6,0.1254]
[1642490909585,3.04834954,3188.5,3187.0,0.0096632]
[1642490909786,1.2177,3188.4,3186.9,1.16896929]
[1642490910085,2.97000471,3188.3,3187.0,0.0096632]
[1642490910931,3.1519,3188.3,3187.0,2.64823842]
[1642490911127,3.1519,3188.3,3187.1,1.0]
[1642490911334,3.0265,3188.3,3187.1,1.45609478]
[1642490911534,3.0265,3188.3,3187.2,0.00852636]
[1642490911735,3.0265,3188.3,3187.2,0.45552636]
[1642490912233,3.0265,3188.3,3187.3,0.00795793]
[1642490912433,5.29177919,3188.3,3187.3,0.13335793]
[1642490912834,3.0265,3188.3,3187.4,0.00738951]
[1642490914480,3.0265,3188.3,3187.6,1.5455126]
[1642490914678,1.2177,3188.4,3187.6,1.8455126]
[1642490914878,1.2177,3188.4,3187.7,0.00568424]
[1642490915480,1.2177,3188.4,3187.9,1.15794678]
[1642490915678,7.0208,3188.7,3187.9,1.15794678]
[1642490915878,3.7745,3188.8,3188.0,0.00397897]
[1642490916683,6.04278629,3188.8,3188.0,0.00397897]
[1642490916887,3.7745,3188.8,3188.0,0.00397897]
[1642490917186,3.6491,3188.8,3188.0,0.12937897]
[1642490917383,3.6491,3188.8,3188.0,1.06487897]
[1642490917582,3.6491,3188.8,3188.1,0.00341054]
[1642490917783,1.1329,3189.2,3188.1,0.12881054]
[1642490918237,1.1329,3189.2,3188.2,0.00284212]
[1642490919438,1.2583,3189.2,3188.2,0.00284212]
[1642490919637,1.1329,3189.2,3188.2,0.00284212]
[1642490919834,1.1329,3189.2,3188.1,0.00341054]
[1642490922277,3.6618,3188.9,3188.1,0.00341054]
[1642490922482,2.67966138,3188.8,3188.1,0.00341054]
[1642490925082,2.67966138,3188.8,3188.0,0.00397897]
[1642490927738,2.29148677,3188.7,3187.9,0.00454739]
[1642490928736,0.1254,3188.6,3187.9,0.00454739]
[1642490929036,2.67966138,3188.6,3187.7,0.00568424]
[1642490930078,4.28075384,3188.6,3187.7,0.00568424]
[1642490930891,4.58075384,3188.6,3187.7,0.00568424]
[1642490931184,4.28075384,3188.6,3187.7,0.00568424]
[1642490931583,2.67966138,3188.5,3187.7,0.00568424]
[1642490933833,2.67966138,3188.6,3187.7,0.00568424]
[1642490936537,2.67966138,3188.7,3187.7,0.00568424]
[1642490941134,2.22179571,3188.6,3187.7,0.00568424]
[1642490941536,2.52179571,3188.6,3187.7,0.00568424]
[1642490942132,2.80506138,3188.5,3187.7,0.00568424]
[1642490942335,2.67818938,3188.4,3187.7,0.00568424]
[1642490942532,0.1254,3188.3,3187.7,0.00568424]
[1642490942936,0.1254,3188.3,3187.5,0.00682109]
[1642490943542,2.80506138,3188.3,3187.5,0.00682109]
[1642490943742,2.38627124,3188.2,3187.5,0.00682109]
[1642490944194,2.68627124,3188.2,3187.5,0.30682109]
[1642490944592,2.68627124,3188.2,3187.6,0.00625266]
[1642490944793,2.38627124,3188.2,3187.6,0.00625266]
[1642490945194,5.06593262,3188.2,3187.6,0.00625266]
[1642490946395,5.06593262,3188.2,3187.5,0.30682109]
[1642490946594,5.06593262,3188.2,3187.6,0.00625266]
[1642490946795,2.67966138,3188.1,3187.6,0.00625266]
[1642490947197,2.67966138,3188.1,3187.5,0.30682109]
[1642490947395,2.20314372,3188.0,3187.6,0.00625266]
[1642490947594,2.67966138,3188.1,3187.6,0.00625266]
[1642490948244,2.67966138,3188.2,3187.5,0.30682109]
[1642490948438,2.19360487,3188.0,3187.6,0.00625266]
[1642490949239,2.22120083,3188.1,3187.5,0.30682109]
[1642490949439,2.22120083,3188.1,3187.6,0.00625266]
[1642490949840,2.22120083,3188.1,3187.5,0.00682109]
[1642490950041,2.67966138,3188.0,3187.5,0.00682109]
[1642490950240,2.48560959,3187.9,3187.5,0.00682109]
[1642490950439,0.3,3187.8,3187.5,0.00682109]
[1642490950640,2.29431358,3187.7,3187.5,0.00682109]
[1642490950943,0.3,3187.8,3187.5,0.00682109]
[1642490951142,2.24598276,3187.7,3187.5,0.00682109]
[1642490951341,2.43623899,3187.9,3187.5,0.00682109]
[1642490951540,2.97966138,3187.8,3187.5,0.00682109]
[1642490951783,2.67966138,3187.8,3187.5,0.00682109]
[1642490952585,2.67966138,3187.7,3187.5,0.00682109]
[1642490953388,2.67966138,3187.8,3187.5,0.00682109]
[1642490953988,3.8377,3188.2,3187.5,0.00682109]
[1642490953989,2.67966138,3188.0,3187.5,0.00682109]
[1642490954188,2.67966138,3188.0,3187.5,0.30682109]
[1642490954688,2.67966138,3188.0,3187.6,0.00625266]
[1642490955092,2.67966138,3188.1,3187.6,0.00625266]
[1642490955946,2.67966138,3188.1,3187.5,0.00682109]
[1642490956148,2.67966138,3188.1,3187.6,0.00625266]
[1642490956346,2.67966138,3188.1,3187.5,0.00682109]
[1642490958655,2.67966138,3188.1,3187.7,1.33386017]
[1642490958854,2.67966138,3188.1,3187.8,0.1254]
[1642490959053,2.67966138,3188.1,3187.8,0.13051582]
[1642490959285,2.67966138,3188.1,3187.9,0.45154739]
[1642490959486,1.60109246,3188.6,3188.1,4.45]
[1642490959687,1.60109246,3188.6,3188.2,0.1254]
[1642490959887,2.67983582,3188.5,3188.2,1.12824212]
[1642490960090,2.67983582,3188.5,3188.3,0.0022737]
[1642490960387,2.67983582,3188.5,3188.4,2.8254]
[1642490960591,2.67983582,3188.5,3188.4,0.4254]
[1642490960888,2.67983582,3188.5,3188.4,1.12710527]
[1642490961088,1.60109246,3188.9,3188.4,0.42710527]
[1642490961293,1.1848,3189.1,3188.4,0.42710527]
[1642490961489,1.1848,3189.1,3188.5,0.00113685]
[1642490961687,0.00170527,3189.0,3188.5,0.00113685]
[1642490962088,0.00113684,3188.9,3188.5,0.00113685]
[1642490962290,0.00113684,3188.9,3188.3,0.0022737]
[1642490965238,0.00113684,3188.9,3188.3,0.4492737]
[1642490965438,0.00113684,3188.9,3188.3,0.48438538]
[1642490965638,0.00113684,3188.9,3188.4,0.00170527]
[1642490970190,0.00113684,3188.9,3188.3,0.0022737]
[1642490970833,0.00113684,3188.9,3188.0,0.00397897]
[1642490971033,0.00113684,3188.9,3188.0,1.00397897]
[1642490971234,0.00113684,3188.9,3188.0,1.03754219]
[1642490971432,0.00113684,3188.9,3188.1,0.00341054]
[1642490972032,0.00113684,3188.9,3188.0,0.00397897]
[1642490974197,0.00113684,3188.9,3188.0,1.00397897]
[1642490974385,0.00113684,3188.9,3188.0,1.0401642]
[1642490974586,0.00113684,3188.9,3188.1,0.00341054]
[1642490975087,0.00113684,3188.9,3188.0,0.00397897]
[1642490975589,0.00113684,3188.9,3188.0,1.00397897]
[1642490975787,0.00113684,3188.9,3188.0,1.04369639]
[1642490975990,0.00113684,3188.9,3188.1,0.00341054]
[1642490981545,0.00113684,3188.9,3188.1,0.45041054]
[1642490981787,0.00113684,3188.9,3188.1,0.4846188]
[1642490981990,0.00113684,3188.9,3188.2,0.00284212]
[1642490987144,0.00113684,3188.9,3188.1,0.00341054]
[1642490987741,2.68099012,3188.9,3188.0,0.00397897]
[1642490988744,0.00113684,3188.9,3188.0,0.00397897]
[1642490992593,1.4848,3189.1,3188.0,0.00397897]
[1642490993941,1.1848,3189.1,3188.0,0.12937897]
[1642490994341,1.1848,3189.1,3188.1,0.00341054]
[1642490994945,1.1848,3189.1,3188.0,0.00397897]
[1642490995143,2.67984262,3189.0,3188.0,0.00397897]
[1642490995546,0.00113684,3188.9,3188.0,0.00397897]
[1642490997195,0.1254,3188.8,3188.0,0.00397897]
[1642490997598,2.98638587,3188.8,3188.0,0.00397897]
[1642490997997,3.28638587,3188.8,3188.0,0.00397897]
[1642490998196,2.68013482,3188.7,3188.0,0.00397897]
[1642490998395,2.56649469,3188.6,3188.0,0.00397897]
[1642490998897,2.56649469,3188.6,3187.6,0.00625266]
[1642490999997,2.68013482,3188.5,3187.6,0.00625266]
[1642491000202,2.2826008,3188.4,3187.6,0.00625266]
[1642491000636,2.68013482,3188.5,3187.6,0.00625266]
[1642491003240,2.68013482,3188.5,3187.6,0.13165266]
[1642491003843,2.68013482,3188.5,3187.6,2.59574659]
[1642491004042,2.68013482,3188.6,3187.7,1.0]
[1642491004295,2.68013482,3188.6,3188.5,0.03234786]
[1642491004494,2.68013482,3188.6,3187.8,2.93312201]
[1642491004693,2.68013482,3188.6,3187.9,1.3]
[1642491004893,2.68013482,3188.6,3188.0,2.42252106]
[1642491005296,2.68013482,3188.6,3188.0,2.75429001]
[1642491005698,2.68013482,3188.6,3188.5,1.22055013]
[1642491005898,2.68013482,3188.6,3188.5,1.5605073]
[1642491006697,2.68013482,3188.6,3188.5,1.56164415]
[1642491007099,2.68013482,3188.6,3188.5,0.30113685]
[1642491007700,3.886,3188.9,3188.5,0.30113685]
[1642491007701,2.68013482,3188.8,3188.5,0.30113685]
[1642491009446,0.25962377,3188.7,3188.5,0.30113685]
[1642491009749,0.51924754,3188.7,3188.5,0.30113685]
[1642491010348,2.68013482,3188.6,3188.5,0.30113685]
[1642491011550,2.68013482,3188.6,3188.5,2.59187881]
[1642491011789,2.68013482,3188.6,3188.5,0.33794531]
[1642491011987,2.68013482,3188.6,3188.5,1.33794531]
[1642491012188,2.68013482,3188.6,3188.5,0.33794531]
[1642491012386,0.51924754,3188.7,3188.5,0.33794531]
[1642491013792,0.51924754,3188.7,3188.5,0.30113685]
[1642491014396,0.25962377,3188.7,3188.5,0.30113685]
[1642491014598,3.886,3188.9,3188.5,0.00113685]
[1642491014797,5.25962377,3188.6,3188.5,0.00113685]
[1642491014997,1.07662377,3188.6,3188.1,0.00341054]
[1642491015196,1.07662377,3188.6,3187.7,0.00568424]
[1642491016236,0.25962377,3188.6,3187.7,0.00568424]
[1642491016441,0.1254,3188.5,3187.7,0.00568424]
[1642491016839,2.90706629,3188.5,3187.6,0.00625266]
[1642491017039,5.58666718,3188.5,3187.6,0.00625266]
[1642491017439,5.58666718,3188.5,3187.4,0.00738951]
[1642491017440,1.19540891,3188.1,3187.4,0.00738951]
[1642491017738,4.974,3188.0,3187.3,0.00795793]
[1642491017937,5.274,3188.0,3186.6,0.0119369]
[1642491018141,7.6025025,3188.0,3186.6,0.0119369]
[1642491019385,2.52757897,3187.9,3186.6,0.0119369]
[1642491019586,0.1255,3187.8,3186.6,0.0119369]
[1642491020087,0.25962377,3187.2,3186.6,0.0119369]
[1642491020287,2.51723198,3187.1,3186.6,0.0119369]
[1642491020488,0.25962377,3186.9,3186.6,0.0119369]
[1642491020889,2.27063944,3186.8,3186.6,0.0119369]
[1642491021091,2.27063944,3186.8,3186.1,0.01477901]
[1642491021092,2.27176662,3186.8,3186.1,0.01477901]
[1642491021288,2.27176662,3186.8,3186.2,1.032871]
[1642491021689,2.27176662,3186.8,3186.3,0.01364217]
[1642491022090,0.25962377,3186.9,3186.3,0.01364217]
[1642491022289,2.25747339,3186.8,3186.3,0.01364217]
[1642491022488,0.25962377,3186.9,3186.3,0.01364217]
[1642491022694,2.27494225,3186.8,3186.3,0.01364217]
[1642491022938,0.25962377,3186.9,3185.9,0.01591586]
[1642491023144,2.28775966,3186.8,3185.9,0.01591586]
[1642491023346,0.25962377,3186.9,3185.9,0.01591586]
[1642491023749,0.25962377,3186.9,3186.3,1.31574765]
[1642491023946,0.25962377,3186.9,3186.3,1.34593999]
[1642491024146,0.25962377,3186.9,3186.4,0.01307374]
[1642491024347,0.25962377,3186.9,3186.5,0.1255]
[1642491024747,0.25962377,3186.9,3186.6,0.0119369]
[1642491025347,0.25962377,3186.8,3186.5,0.01250532]
[1642491025747,0.25962377,3186.6,3186.5,0.01250532]
[1642491026451,0.25962377,3186.6,3186.4,0.01307374]
[1642491027393,0.20962377,3186.6,3186.4,0.01307374]
[1642491029196,0.20962377,3186.6,3186.2,0.01421059]
[1642491029594,0.20962377,3186.6,3185.8,0.01648428]
[1642491029795,0.20962377,3186.6,3185.7,0.01705271]
[1642491029999,2.53812627,3186.6,3185.7,0.01705271]
[1642491030447,18.27,3186.5,3185.7,0.01705271]
[1642491030654,0.25962377,3186.2,3185.7,0.01705271]
[1642491030851,1.35432377,3186.2,3185.7,0.01705271]
[1642491031052,1.35432377,3186.2,3185.5,0.01818955]
[1642491031251,0.20962377,3186.0,3185.4,0.01875798]
[1642491031852,0.20962377,3186.0,3185.2,0.01989483]
[1642491033458,0.33512377,3186.0,3185.2,0.01989483]
[1642491033661,0.33512377,3186.0,3185.0,0.02103167]
[1642491033662,2.38866632,3185.9,3185.0,0.02103167]
[1642491033860,2.38866632,3185.9,3185.1,0.02046325]
[1642491034061,2.38866632,3185.9,3184.8,0.02216852]
[1642491034319,2.38866632,3185.9,3184.8,0.07852052]
[1642491034505,2.38866632,3185.9,3184.8,0.02216852]
[1642491034706,2.38866632,3185.9,3184.9,0.0216001]
[1642491034904,2.38866632,3185.9,3184.8,0.02216852]
[1642491035204,2.38866632,3185.9,3184.7,0.02273694]
[1642491035909,0.25962377,3185.2,3184.7,0.02273694]
[1642491036109,0.25962377,3185.2,3184.7,0.14823694]
[1642491036509,0.25962377,3185.2,3184.8,0.02216852]
[1642491036708,0.20962377,3185.0,3184.8,0.02216852]
[1642491037711,1.33272377,3185.0,3184.8,0.02216852]
[1642491040551,1.33272377,3185.0,3184.8,0.32216852]
[1642491040951,1.33272377,3185.0,3184.9,0.0216001]
[1642491041452,1.59234754,3185.0,3184.9,0.0216001]
[1642491041906,1.59234754,3185.0,3184.8,0.02216852]
[1642491042303,1.38272377,3185.0,3184.8,0.02216852]
[1642491044610,1.38272377,3185.0,3184.7,0.02273694]
[1642491046342,1.1231,3185.0,3184.7,0.02273694]
[1642491046543,0.25962377,3184.8,3184.7,0.02273694]
[1642491047744,0.25962377,3184.8,3184.5,0.02387379]
[1642491047947,0.25962377,3184.8,3184.7,0.02273694]
[1642491048150,0.25962377,3184.8,3184.5,0.02387379]
[1642491048351,2.31398967,3184.7,3184.5,0.02387379]
[1642491048952,4.08483255,3184.8,3184.5,0.02387379]
[1642491049595,4.08483255,3184.8,3184.3,0.02501064]
[1642491050395,4.05031474,3184.8,3184.3,0.02501064]
[1642491050597,0.1255,3184.7,3184.3,0.02501064]
[1642491051796,0.25962377,3184.5,3184.3,0.02501064]
[1642491052952,2.446334,3184.4,3184.3,0.02501064]
[1642491053647,0.20962377,3184.4,3184.3,0.02501064]
[1642491053848,2.50149989,3184.4,3184.3,0.02501064]
[1642491054049,0.20962377,3184.4,3184.3,0.02501064]
[1642491055250,2.46560556,3184.4,3184.3,0.02501064]
[1642491055450,3.41700556,3184.4,3184.3,0.02501064]
[1642491057091,3.51207982,3184.4,3184.3,0.02501064]
[1642491057292,1.42064754,3184.4,3184.3,0.02501064]
[1642491057697,3.74212196,3184.4,3184.3,0.02501064]
[1642491057893,1.42064754,3184.4,3184.3,0.02501064]
[1642491059095,1.42064754,3184.4,3183.8,2.60479268]
[1642491059298,5.43980053,3184.3,3183.8,2.60479268]
[1642491059494,5.43980053,3184.3,3183.9,0.00227369]
[1642491059693,5.43980053,3184.3,3183.8,2.8716013]
[1642491059694,0.20962377,3184.0,3183.8,2.78790499]
[1642491059895,0.20962377,3184.0,3183.8,2.78291499]
[1642491060542,2.6512368,3184.0,3183.8,2.78291499]
[1642491061443,2.44768577,3184.0,3183.8,2.78291499]
[1642491061642,2.5275349,3184.0,3183.8,2.78291499]
[1642491062041,2.5275349,3184.0,3183.3,0.03860995]
[1642491062241,2.5275349,3184.0,3183.2,0.1325]
[1642491062242,20.7975349,3184.0,3183.2,0.1325]
[1642491062444,0.25962377,3183.6,3183.4,0.00284212]
[1642491063144,1.06482377,3183.6,3183.4,0.00284212]
[1642491063348,1.06482377,3183.6,3182.9,0.89858485]
[1642491063547,1.06482377,3183.6,3183.2,0.1256]
[1642491063747,1.06482377,3183.6,3183.0,0.12777369]
[1642491064189,1.06482377,3183.6,3183.1,0.00170527]
[1642491064395,1.06482377,3183.6,3183.2,0.1255]
[1642491065098,0.20962377,3183.4,3183.2,0.1255]
[1642491066300,0.20962377,3183.4,3183.1,0.00170527]
[1642491067200,0.20962377,3183.4,3183.2,0.1255]
[1642491067400,0.20962377,3183.4,3183.2,0.5725]
[1642491067600,1.98722377,3183.4,3183.2,0.8725]
[1642491067802,0.25962377,3183.3,3183.2,0.90458939]
[1642491068250,0.25962377,3183.3,3183.2,0.90572623]
[1642491069451,0.25962377,3183.3,3183.2,0.78022623]
[1642491069652,2.03722377,3183.3,3183.2,0.78022623]
[1642491070452,2.24684754,3183.3,3183.2,0.78022623]
[1642491071451,2.24684754,3183.3,3183.2,3.38022623]
[1642491071695,2.24684754,3183.3,3183.2,4.38022623]
[1642491071895,2.24684754,3183.3,3183.2,1.78022623]
[1642491072096,2.24684754,3183.3,3183.2,0.78022623]
[1642491072497,2.24684754,3183.3,3183.2,1.08022623]
[1642491072799,2.24684754,3183.3,3183.2,1.08148716]
[1642491073201,2.24684754,3183.3,3183.2,0.74813684]
[1642491073399,2.24684754,3183.3,3183.2,0.78181107]
[1642491076547,5.5869935,3183.3,3183.2,0.00113684]
[1642491077142,5.5869935,3183.3,3182.9,0.00284211]
[1642491077342,5.32736973,3183.3,3182.6,0.00454739]
[1642491077544,5.11774596,3183.3,3182.6,0.00454739]
[1642491077743,0.46924754,3182.9,3182.6,0.00454739]
[1642491080595,0.46712194,3182.9,3182.7,0.5725]
[1642491080795,0.46712194,3182.9,3182.7,0.8725]
[1642491081098,0.46712194,3182.9,3182.8,0.00341054]
[1642491081295,0.46712194,3182.9,3182.8,0.45041054]
[1642491081498,0.46712194,3182.9,3182.8,0.48293931]
[1642491082701,0.20962377,3182.9,3182.8,0.48293931]
[1642491082953,0.46712194,3182.9,3182.8,0.48293931]
[1642491084651,0.46712194,3182.9,3182.8,0.45041054]
[1642491085653,0.46712194,3182.9,3182.8,0.75041054]
[1642491085851,0.46712194,3182.9,3182.8,0.33997805]
[1642491086050,0.46712194,3182.9,3182.8,0.30341054]
[1642491086257,1.47902194,3182.9,3182.8,0.00341054]
[1642491086694,1.47902194,3182.9,3182.6,0.00454739]
[1642491087096,1.26939817,3182.9,3182.6,0.00454739]
[1642491087393,0.20962377,3182.7,3182.6,0.00454739]
[1642491088300,0.46712194,3182.7,3182.6,0.00454739]
[1642491089705,0.46712194,3182.7,3182.6,0.07294739]
[1642491096000,1.39902194,3182.7,3182.6,0.07294739]
[1642491098848,0.46712194,3182.7,3182.6,0.07294739]
[1642491105947,0.46712194,3182.7,3182.4,0.007]
[1642491106345,2.45477571,3183.1,3182.4,0.007]
[1642491106546,0.25749817,3182.6,3182.4,0.007]
[1642491106747,0.25749817,3182.6,3182.4,0.1325]
[1642491107148,0.25749817,3182.6,3182.4,1.16465641]
[1642491107345,0.25749817,3182.6,3182.4,0.46465641]
[1642491107546,0.25749817,3182.6,3182.4,1.46465641]
[1642491107748,0.25749817,3182.6,3182.4,0.4325]
[1642491107947,0.25749817,3182.6,3182.4,1.46497285]
[1642491108350,0.25749817,3182.6,3182.4,0.46497285]
[1642491108550,0.25749817,3182.6,3182.5,0.55778677]
[1642491111000,0.25749817,3182.6,3182.5,0.68328677]
[1642491112206,0.46712194,3182.6,3182.5,0.68328677]
[1642491112406,0.46712194,3182.6,3182.5,1.13028677]
[1642491113056,0.46712194,3182.6,3182.5,2.63574534]
[1642491113455,0.46712194,3182.6,3182.5,3.63574534]
[1642491113857,0.46712194,3182.6,3182.5,2.13028677]
[1642491114256,0.46712194,3182.6,3182.5,2.43028677]
[1642491114656,0.46712194,3182.6,3182.5,2.6931746]
[1642491115257,0.46712194,3182.6,3182.5,1.3931746]
[1642491115457,0.46712194,3182.6,3182.5,2.3931746]
[1642491115658,0.46712194,3182.6,3182.5,1.3931746]
[1642491115857,0.46712194,3182.6,3182.5,2.3931746]
[1642491117298,0.46712194,3182.6,3182.5,2.2676746]
[1642491117503,0.46712194,3182.6,3182.5,2.5676746]
[1642491117702,0.0022737,3183.0,3182.6,4.65]
[1642491117900,0.0022737,3183.0,3182.7,0.5246481]
[1642491118104,0.00170528,3182.9,3182.7,2.1017391]
[1642491118304,0.00170528,3182.9,3182.7,2.324091]
[1642491118504,0.00113685,3182.8,3182.7,2.624091]
[1642491118704,0.00113685,3182.8,3182.7,1.624091]
[1642491119005,0.00113685,3182.8,3182.7,19.724091]
[1642491119204,0.00113685,3182.8,3182.7,13.324091]
[1642491119406,0.00113685,3182.8,3182.7,8.124091]
[1642491119604,0.00113685,3182.8,3182.7,2.324091]
[1642491120008,0.00113685,3182.8,3182.7,1.324091]
[1642491122354,0.00113685,3182.8,3182.7,0.8034164]
[1642491124796,0.00113685,3182.8,3182.7,0.83354902]
[1642491124998,0.00113685,3182.8,3182.7,1.35407824]
[1642491126001,0.00113685,3182.8,3182.7,1.65407824]
[1642491126203,0.1255,3183.6,3182.8,5.70601288]
[1642491126402,0.1255,3183.6,3182.9,0.51332529]
[1642491126700,0.00397897,3183.5,3183.0,0.1255]
[1642491126899,0.00397897,3183.5,3183.1,0.447]
[1642491127100,0.00341054,3183.4,3183.1,0.83932039]
[1642491127502,0.00284212,3183.3,3183.1,0.78290399]
[1642491127959,0.0022737,3183.2,3183.1,0.78290399]
[1642491129151,0.0022737,3183.2,3183.1,1.30335089]
[1642491129450,0.0022737,3183.2,3183.1,1.25335089]
[1642491132101,0.0022737,3183.2,3183.1,0.25]
[1642491132299,0.0022737,3183.2,3182.4,1.48765547]
[1642491132500,0.0022737,3183.2,3182.4,0.04065547]
[1642491132700,0.00170527,3183.1,3182.5,0.00170527]
[1642491133106,2.53287122,3183.4,3182.5,0.00170527]
[1642491133107,0.00113685,3183.0,3182.5,0.00170527]
[1642491133506,0.00284212,3183.3,3182.6,0.52063404]
[1642491133707,0.1255,3183.2,3182.6,0.52063404]
[1642491133908,0.1255,3183.3,3182.7,0.00341054]
[1642491134108,0.1255,3183.5,3182.7,0.00341054]
[1642491139604,0.00170527,3183.6,3182.8,0.1255]
[1642491139804,2.25997006,3183.6,3182.8,0.1255]
[1642491140004,2.25997006,3183.6,3182.9,0.00227369]
[1642491140205,2.39225963,3183.6,3182.9,0.00227369]
[1642491140606,2.39225963,3183.6,3182.8,0.00284212]
[1642491140607,20.66225963,3183.6,3182.8,0.00284212]
[1642491140811,2.39225963,3183.6,3182.7,0.00341054]
[1642491141206,2.39225963,3183.6,3182.5,0.00454739]
[1642491141408,2.68332662,3183.5,3182.6,0.1255]
[1642491141706,2.68332662,3183.5,3182.7,0.00341054]
[1642491141907,2.38228956,3183.4,3182.7,0.00341054]
[1642491142306,2.38228956,3183.4,3182.6,0.00397897]
[1642491142505,0.1255,3183.4,3182.6,0.00397897]
[1642491142712,2.51469625,3183.4,3182.6,0.00397897]
[1642491142956,2.68503189,3183.6,3182.6,0.00397897]
[1642491142957,0.1255,3183.5,3182.6,0.00397897]
[1642491143153,5.08502579,3183.6,3182.7,0.1255]
[1642491143555,0.12720527,3183.6,3182.8,0.00284212]
[1642491143753,0.00170527,3183.6,3182.8,0.00284212]
[1642491144257,2.25835729,3183.6,3182.8,0.00284212]
[1642491144456,0.00170527,3183.6,3182.8,0.00284212]
[1642491145255,2.28534941,3183.6,3182.8,0.00284212]
[1642491145456,4.96862982,3183.6,3182.8,0.00284212]
[1642491145860,2.68498568,3183.6,3182.8,0.00284212]
[1642491146258,2.68328041,3183.5,3182.9,0.1255]
[1642491146696,2.68328041,3183.5,3183.0,0.00170527]
[1642491146894,2.68328041,3183.5,3183.0,0.96896495]
[1642491147095,2.68328041,3183.5,3183.0,1.26896495]
[1642491147295,0.00170527,3183.6,3183.1,0.00113685]
[1642491147498,0.00170527,3183.6,3183.1,0.12663685]
[1642491147699,0.00170527,3183.6,3183.1,0.00113685]
[1642491148100,0.00170527,3183.6,3183.0,0.00170527]
[1642491148301,0.00170527,3183.6,3183.1,0.1255]
[1642491148903,2.24985205,3183.6,3183.1,0.1255]
[1642491149102,0.00170527,3183.6,3183.1,0.1255]
[1642491149702,0.00170527,3183.6,3183.0,0.00170527]
[1642491149903,18.27170527,3183.6,3183.0,0.00170527]
[1642491150107,2.41957897,3183.5,3183.0,0.00170527]
[1642491150547,2.41957897,3183.5,3182.9,0.00227369]
[1642491151056,2.68362156,3183.4,3182.9,0.00227369]
[1642491151254,2.37741372,3183.3,3182.8,0.00284212]
[1642491151453,2.37741372,3183.3,3182.5,0.00454739]
[1642491151658,2.50291372,3183.3,3182.5,0.00454739]
[1642491152653,2.37741372,3183.3,3182.5,0.00454739]
[1642491154695,2.37970054,3183.4,3182.5,0.00454739]
[1642491155997,2.6837337,3183.3,3182.5,0.00454739]
[1642491156497,2.25439265,3183.2,3182.5,0.00454739]
[1642491156698,2.6837337,3183.3,3182.5,0.00454739]
[1642491156900,2.26237732,3183.2,3182.5,0.00454739]
[1642491157958,2.6837337,3183.1,3182.5,0.30454739]
[1642491158153,2.6837337,3183.1,3182.5,0.46150554]
[1642491158357,2.6837337,3183.1,3183.0,1.29368968]
[1642491158556,2.6837337,3183.1,3182.7,0.5725]
[1642491158752,2.6837337,3183.1,3183.0,0.00170527]
[1642491158956,2.6837337,3183.3,3183.0,0.447]
[1642491159153,2.6837337,3183.3,3183.0,0.747]
[1642491159356,2.6837337,3183.3,3183.1,0.00113685]
[1642491159555,2.6837337,3183.3,3183.1,0.44813685]
[1642491159758,2.6837337,3183.3,3183.1,0.00113685]
[1642491160159,0.1255,3183.5,3183.1,0.00113685]
[1642491160360,0.1255,3183.5,3182.5,0.00454739]
[1642491161464,2.68379268,3183.4,3182.5,0.00454739]
[1642491164010,0.1255,3183.3,3182.5,0.00454739]
[1642491164807,0.1255,3183.3,3182.5,0.47574399]